[Event "1st FIDE Olympiad DIS 2023"]
[Site "Belgrade"]
[Date "2023.02.01"]
[Round "3.27"]
[White "Zivic, Dragan"]
[Black "Damjanovic, Radovan"]
[Result "1-0"]
[ECO "B90"]
[WhiteElo "2186"]
[BlackElo "1807"]
[Annotator "TA"]
[PlyCount "115"]
[EventDate "2023.01.30"]
[EventType "team-tourn"]
[EventCountry "SRB"]
[SourceTitle "playchess.com"]
[Source "ChessBase"]
[SourceQuality "1"]
[WhiteTeam "Serbia"]
[BlackTeam "Montenegro"]
[WhiteTeamCountry "SRB"]
[BlackTeamCountry "MNE"]
[TimeControl "40/5400+30:1800+30"]

{[%evp 16,115,25,27,27,27,27,30,27,29,25,25,41,37,37,34,37,34,46,42,37,0,47,38,49,55,46,43,55,43,50,46,45,45,52,31,95,43,45,33,27,23,23,33,27,24,27,24,24,21,26,22,50,50,105,105,145,137,151,158,145,119,231,241,221,150,150,139,141,150,136,89,207,203,131,78,215,186,238,223,371,282,358,300,388,355,477,466,6404,6279,6070,319,319,319,5180,319,5410,5406,5398,5398,29981,29979]} 1. e4 {[%emt 0:00:06]} c5 {[%emt 0:00:31]} 2. Nf3 {[%emt 0:00:10]} d6 {[%emt 0:00:11]} 3. d4 {[%emt 0:00:40]} cxd4 {[%emt 0:00:16]} 4. Nxd4 {[%emt 0:00:07]} Nf6 {[%emt 0:00:44]} 5. Nc3 {[%emt 0:00:30]} a6 {[%emt 0:00:26]} 6. f3 {[%emt 0:01:08]} e5 {[%emt 0:00:56]} 7. Nb3 {[%emt 0:00:12]} Be6 {[%emt 0:00:24]} 8. Be3 {[%emt 0:01:42]} Nc6 {[%emt 0:00:36]} 9. Qd2 {[%emt 0:01:40]} d5 {[%emt 0:01:57] B90: Sicilian Najdorf: Unusual White 6th moves, 6 Be3 Ng4 and 6 Be3 e5.} 10. exd5 {[%emt 0:02:56]} Nxd5 {[%emt 0:01:20]} 11. Nxd5 {[%emt 0:00:33]} Qxd5 {[%emt 0:01:23] White has an edge.} 12. Qxd5 {[%emt 0:02:54]} Bxd5 {[%emt 0:08:32]} 13. O-O-O {[%emt 0:00:00]} Be6 {[%emt 0:11:59]} 14. Nc5 {[%emt 0:05:54]} Bxc5 {[%emt 0:02:09]} 15. Bxc5 {[%emt 0:00:10] [#]} f6 $146 {[%emt 0:05:56]} ({Predecessor:} 15... Rc8 16. Kb1 f6 17. Bd3 Kf7 18. c3 h5 19. h4 Na5 20. b4 Nc4 21. Bxc4 Bxc4 {½-½ Tiviakov,S (2575)-Ljubojevic,L (2605) Moscow blitz 1993}) 16. b3 {[%emt 0:06:18]} Rd8 {[%emt 0:00:00]} 17. Be2 {[%emt 0:03:52]} Kf7 {[%emt 0:00:47]} 18. c3 {[%emt 0:01:23]} Rxd1+ {[%emt 0:00:00]} (18... Rc8 $11) 19. Rxd1 $14 {[%emt 0:00:30]} Rd8 {[%emt 0:02:09]} 20. Rxd8 {[%emt 0:02:40]} Nxd8 {[%emt 0:00:00][%mdl 4096] Endgame KBB-KBN} 21. c4 {[%emt 0:00:33]} Bd7 {[%emt 0:01:48]} 22. Kd2 {[%emt 0:05:56]} Ne6 {[%emt 0:01:10]} 23. Be3 {[%emt 0:00:27]} Bc6 {[%emt 0:06:53]} 24. Bd3 {[%emt 0:10:10]} g6 {[%emt 0:02:26]} 25. b4 {[%emt 0:00:30]} Nc7 {[%emt 0:02:31] [#]} (25... b5 $14) 26. Kc3 {[%emt 0:01:12]} (26. Bb6 $1 $16 {[%cal Rb6c7]} Ne6 27. b5) 26... Ke6 {[%emt 0:00:33]} 27. Kb3 {[%emt 0:00:58]} b5 {[%emt 0:00:00][%cal Bb7b5,Bb5a4][%mdl 32]} 28. a4 {[%emt 0:10:25]} bxa4+ {[%emt 0:06:23]} 29. Ka3 {[%emt 0:01:00]} f5 {[%emt 0:01:02]} 30. Bb6 {[%emt 0:01:06]} Ne8 {[%emt 0:01:00]} 31. b5 {[%emt 0:01:17]} axb5 {[%emt 0:06:44]} 32. cxb5 {[%emt 0:00:28]} Bd5 {[%emt 0:01:40]} 33. Kxa4 {[%emt 0:00:50]} e4 {[%emt 0:02:16]} 34. fxe4 {[%emt 0:02:13]} fxe4 {[%emt 0:00:37]} ({Black should play} 34... Bxe4 $14 35. Bc4+ Ke5) 35. Be2 $16 {[%emt 0:01:41]} Nd6 {[%emt 0:02:20] [#]} 36. Kb4 $1 {[%emt 0:06:40] Prevents Bc4.} Nb7 {[%emt 0:04:03]} 37. Bc7 {[%emt 0:08:42]} Kd7 {[%emt 0:13:09]} 38. Bf4 {[%emt 0:01:48]} Ke6 {[%emt 0:01:55]} (38... Nd8 $16 {keeps fighting.} 39. Be3 Kd6) 39. Bg4+ $18 {[%emt 0:02:04]} Kf6 {[%emt 0:01:03]} 40. Kc3 {[%emt 0:01:26]} Nd8 {[%emt 0:06:49]} 41. Kd4 {[%emt 0:33:46]} Bb7 {[%emt 0:00:55]} 42. Be5+ {[%emt 0:01:00]} Ke7 {[%emt 0:31:20]} 43. Kc5 {[%emt 0:03:20] White is more active.} (43. h4 $142) 43... e3 {[%emt 0:02:08]} (43... Ne6+ $16 44. Kc4 e3) 44. g3 {[%emt 0:00:46]} Ne6+ {[%emt 0:03:33]} 45. Kc4 {[%emt 0:00:00]} (45. Kb4 $142) 45... Bg2 {[%emt 0:00:00] Black cannot hold the game after this.} (45... Ng5 $16 {was necessary.}) 46. b6 {[%emt 0:00:00]} h5 {[%emt 0:00:00]} (46... Bb7 $142 47. Kc3 Ng5) 47. Be2 {[%emt 0:00:00] Kd3 is the strong threat. A strong pair of Bishops.} Bb7 {[%emt 0:03:09]} (47... Kd7 $142 48. g4 h4) 48. Kc3 {[%emt 0:00:00]} Nd8 {[%emt 0:07:13]} 49. Bf4 {[%emt 0:00:00]} Kd7 {[%emt 0:02:41]} 50. Bd3 {[%emt 0:00:00]} (50. Bxe3 Nc6 51. Bd3 Ne7 $18) 50... Ne6 {[%emt 0:02:05]} 51. Bxg6 {[%emt 0:00:00]} (51. Bxe3 g5 52. Bf5 Kd6 $18) 51... Nxf4 {[%emt 0:00:00]} (51... e2 $142 52. Kd2 (52. Bxh5 {is a self mate.} e1=Q+ 53. Kb2 Qb4+ 54. Kc2 Qc5+ 55. Kb2 Qb4+ 56. Kc1 Qc5+ 57. Kb2 Qxh5 58. h3 Qc5 59. Bd2 Nd4 60. Bc3 Be4 61. Bxd4 Qb4+ 62. Ka2 Bd5+ 63. Ka1 Qa3+ 64. Kb1 Be4#) 52... h4 53. Kxe2 Bd5) 52. gxf4 {[%emt 0:00:00] KB-KB} Bf3 {[%emt 0:00:00]} 53. Kd3 $2 {[%emt 0:00:00]} (53. h4 {Strongly threatening Kd3.} e2 54. Kd2) 53... e2 {[%emt 0:00:00]} 54. Kd2 {[%emt 0:00:00] And now f5 would win.} Kc6 $2 {[%emt 0:00:20]} (54... Bg4 55. f5 Bxf5) 55. f5 {[%emt 0:00:00][%cal Bf4f5,Bf5f6][%mdl 32]} Kxb6 $2 {[%emt 0:00:00]} (55... Be4 56. Kxe2 h4) 56. f6 {White wants to mate with f7.} Bd5 {[%emt 0:01:16]} 57. Kxe2 {[%emt 0:00:00]} ({Inferior is} 57. Bxh5 e1=R 58. Kxe1 Kc5 $11) 57... Kc6 {[%emt 0:00:00] [#]} 58. Be4 $1 {[%emt 0:00:00][%mdl 576] Promotion.   Weighted Error Value: White=0.26 (precise) /Black=0.46} 1-0

[Event "1st FIDE Olympiad DIS 2023"]
[Site "Belgrade"]
[Date "2023.02.01"]
[Round "3.29"]
[White "Bozinovic, Bogdan"]
[Black "Jimenez Moron, Elias"]
[Result "1-0"]
[ECO "D61"]
[WhiteElo "2131"]
[BlackElo "1967"]
[Annotator "TA"]
[PlyCount "85"]
[EventDate "2023.01.30"]
[EventType "team-tourn"]
[EventCountry "SRB"]
[SourceTitle "playchess.com"]
[Source "ChessBase"]
[SourceQuality "1"]
[WhiteTeam "Croatia"]
[BlackTeam "Panama"]
[WhiteTeamCountry "CRO"]
[BlackTeamCountry "PAN"]
[TimeControl "40/5400+30:1800+30"]

{[%evp 17,85,14,14,0,67,-31,21,-8,82,61,122,-11,118,95,106,84,107,71,139,122,163,152,213,127,152,154,187,160,144,91,99,79,163,138,177,162,222,213,218,145,583,587,598,646,675,675,655,660,650,635,924,922,913,893,893,898,872,867,1279,1237,2485,2487,5841,5833,5339,5090,29990,29991,29991,29992]} 1. d4 {[%emt 0:00:14]} d5 {[%emt 0:00:08]} 2. c4 {[%emt 0:00:14]} e6 {[%emt 0:00:17]} 3. Nc3 {[%emt 0:00:15]} Nf6 {[%emt 0:00:40]} 4. Bg5 {[%emt 0:00:13]} Nbd7 {[%emt 0:00:50]} 5. e3 {[%emt 0:00:19]} Be7 {[%emt 0:00:48]} 6. Nf3 {[%emt 0:00:23]} c6 {[%emt 0:00:09]} 7. Qc2 {[%emt 0:01:04]} O-O {[%emt 0:00:15]} 8. O-O-O {[%emt 0:01:02]} dxc4 {[%emt 0:00:59]} 9. Bxc4 {[%emt 0:00:09]} Nd5 {[%emt 0:00:21]} 10. h4 {[%emt 0:03:57] D61: Queen's Gambit Declined: Classical: 7 Qc2.} N7b6 {[%emt 0:03:19] [#]} (10... h6 $11) 11. Bb3 $146 {[%emt 0:04:17]} (11. Bd3 $14) ({Predecessor:} 11. Nxd5 cxd5 12. Bd3 h6 13. Bxe7 Qxe7 14. g4 Bd7 15. Qe2 Rfc8+ 16. Kb1 Qb4 17. a3 Qb3 18. Nd2 Qa4 19. g5 hxg5 20. hxg5 Kf8 21. Rh7 a6 22. Qh5 Bb5 23. Bxb5 axb5 24. Rh8+ {½-½ Van Briemen,W (1894)-Geertsma,F (1931) Leiden SB-ch 2009 (4)}) 11... a5 {[%emt 0:03:03]} (11... f6 $15) 12. a3 {[%emt 0:03:16] The position is equal.} Nxc3 {[%emt 0:01:43]} (12... f6 $11 13. Bf4 Nxf4 14. exf4 Nd5) 13. Qxc3 $16 {[%emt 0:00:07]} f6 {[%emt 0:02:31] [#]} (13... Nd5 $14 14. Qd3 b6) 14. Bf4 {[%emt 0:01:26]} (14. Qd3 $1 $16) 14... Kh8 {[%emt 0:00:28]} (14... Nd5 $11 15. Qd3 a4) 15. Bc2 {[%emt 0:02:05] White is much more active. The black rooks are badly placed.} Nd5 {[%emt 0:01:32]} 16. Qd3 {[%emt 0:00:13][%csl Gc2][%cal Rd3h7]} f5 {[%emt 0:00:01]} 17. Bg5 {[%emt 0:00:39]} Qe8 {[%emt 0:02:18]} (17... b6 $142) 18. Ne5 {[%emt 0:01:19]} Bf6 {[%emt 0:02:55]} 19. e4 {[%emt 0:03:36]} Nc7 {[%emt 0:07:35]} (19... Ne7 $16 20. Qg3 b6) 20. Nf3 {[%emt 0:12:00]} (20. Bf4 $18) 20... b6 {[%emt 0:05:22]} 21. Qe3 {[%emt 0:00:27]} Qh5 {[%emt 0:08:31]} 22. Qf4 {[%emt 0:06:48]} Ra7 {[%emt 0:09:06] Black is weak on the dark squares} 23. Qd6 {[%emt 0:05:02]} ({Don't take} 23. exf5 $6 Nd5 24. Qg3 exf5 $14) (23. Kb1 $142) 23... Qe8 {[%emt 0:04:37]} 24. Bxf6 {[%emt 0:01:49]} Rxf6 {[%emt 0:01:42]} (24... gxf6 $16 25. exf5 Nb5) 25. h5 $40 {[%emt 0:02:52][%mdl 128] White wants a kill.} Nb5 {[%emt 0:00:23]} 26. Qe5 {[%emt 0:00:33] Black must now prevent a4.} Qf8 {[%emt 0:06:56]} (26... Qd8 {might work better.} 27. h6 Nd6 28. exf5 exf5) 27. Nh4 {[%emt 0:03:57][%cal Oh4g6] aiming for Ng6+!} Kg8 {[%emt 0:05:09][%cal Ob5a3] [#]} 28. exf5 $1 {[%emt 0:01:37] g4 is the strong threat.} Qd6 $2 {[%emt 0:03:05][%mdl 8192] Black cannot hold the game after this.} (28... a4 $16 {is more resistant.}) 29. a4 $18 {[%emt 0:01:15]} Qxe5 {[%emt 0:06:43]} 30. dxe5 {[%emt 0:00:10]} Rf8 {[%emt 0:00:01]} 31. axb5 {[%emt 0:00:24]} cxb5 {[%emt 0:00:02]} 32. g4 {[%emt 0:00:39]} a4 {[%emt 0:00:09] [#]} 33. h6 $1 {[%emt 0:00:56]} b4 {[%emt 0:00:51]} (33... gxh6 34. Rd6) 34. hxg7 {[%emt 0:00:29]} Rxg7 {[%emt 0:00:33]} 35. f6 {[%emt 0:00:34]} Rc7 {[%emt 0:00:54]} 36. Kb1 {[%emt 0:00:40]} Bb7 {[%emt 0:00:37]} 37. f3 {[%emt 0:00:33]} a3 {[%emt 0:02:43]} 38. Bb3 {[%emt 0:00:21]} Kf7 {[%emt 0:00:29]} 39. Nf5 {[%emt 0:00:56]} Kg6 {[%emt 0:02:13]} 40. Ne7+ {[%emt 0:02:54]} Kg5 {[%emt 0:00:44]} 41. Rd4 {[%emt 0:30:51][%csl Gg4][%cal Rh1h5]} Rxe7 {[%emt 0:30:49]} 42. Rh5+ {[%emt 0:00:27]} Kg6 {[%emt 0:00:04]} 43. Bc2+ {[%emt 0:00:15][%mdl 64] Deflection.   Weighted Error Value: White=0.29 (precise) /Black=0.59} 1-0

[Event "1st FIDE Olympiad DIS 2023"]
[Site "Belgrade"]
[Date "2023.02.01"]
[Round "3.30"]
[White "Osorio, Jesus Camilo"]
[Black "Nestorovic, Vladimir"]
[Result "0-1"]
[ECO "D02"]
[WhiteElo "1859"]
[BlackElo "2171"]
[Annotator "TA"]
[PlyCount "78"]
[EventDate "2023.01.30"]
[EventType "team-tourn"]
[EventCountry "SRB"]
[SourceTitle "playchess.com"]
[Source "ChessBase"]
[SourceQuality "1"]
[WhiteTeam "Panama"]
[BlackTeam "Croatia"]
[WhiteTeamCountry "PAN"]
[BlackTeamCountry "CRO"]
[TimeControl "40/5400+30:1800+30"]

{[%evp 12,78,6,0,20,0,10,-12,-12,-19,9,1,8,-6,5,-11,-6,-18,-20,-15,-12,-22,21,18,38,0,25,35,35,31,33,36,46,23,75,21,18,16,16,17,12,0,0,0,239,113,197,203,244,230,856,386,829,828,795,781,1663,1272,1331,1257,1211,1190,29970,29967,4927,558,1062,-6079,-5651]} 1. d4 {[%emt 0:00:05]} d5 {[%emt 0:00:09]} 2. Nf3 {[%emt 0:00:30]} Nf6 {[%emt 0:01:06]} 3. Bf4 {[%emt 0:01:07]} g6 {[%emt 0:01:02]} 4. e3 {[%emt 0:01:56]} Bg7 {[%emt 0:00:09]} 5. Bd3 {[%emt 0:01:21]} O-O {[%emt 0:00:08]} 6. Nbd2 {[%emt 0:00:24]} b6 {[%emt 0:00:36]} 7. c3 {[%emt 0:01:32]} Bb7 {[%emt 0:00:07] D02: 1 d4 d5 2 Nf3 sidelines, including 2...Nf6 3 g3 and 2...Nf6 3 Bf4.} 8. Qc2 {[%emt 0:02:01]} c5 {[%emt 0:00:11]} 9. O-O {[%emt 0:00:29]} Nc6 {[%emt 0:00:17] The position is equal.} 10. Ne5 {[%emt 0:02:06]} Rc8 {[%emt 0:01:43]} 11. Nxc6 {[%emt 0:00:37]} Bxc6 {[%emt 0:00:04]} 12. Be5 {[%emt 0:00:43]} Bb7 {[%emt 0:01:53] [#]} 13. Rac1 $146 {[%emt 0:02:46]} ({Predecessor:} 13. Qa4 c4 14. Be2 a5 15. Qc2 b5 16. Bf3 Qb6 17. Rfc1 Bh6 18. Bf4 Bxf4 19. exf4 Ba8 20. f5 {1-0 Suchomel,A (1991)-Zezula,R (1925) CZE-ch U16 Kouty nad Desnou 2011 (8)}) 13... e6 {[%emt 0:00:28]} 14. h3 {[%emt 0:01:13]} Nd7 {[%emt 0:02:37]} 15. Bxg7 {[%emt 0:00:14]} Kxg7 {[%emt 0:00:03]} 16. f4 {[%emt 0:02:10]} cxd4 {[%emt 0:04:25]} 17. exd4 {[%emt 0:00:12]} Qc7 {[%emt 0:00:13]} 18. g3 {[%emt 0:03:12]} Nf6 {[%emt 0:01:25]} 19. Rce1 {[%emt 0:08:17]} a6 {[%emt 0:01:05]} 20. Nf3 {[%emt 0:02:00]} b5 {[%emt 0:00:21][%cal Ob5b4]} 21. a3 {[%emt 0:00:12]} Qb6 {[%emt 0:00:18]} 22. Ne5 {[%emt 0:19:54]} Rfd8 {[%emt 0:00:25] [#]} (22... Rc7 $11) 23. f5 {[%emt 0:04:19]} exf5 $11 {[%emt 0:03:16] [#]} 24. Bxf5 {[%emt 0:03:04]} Rc7 {[%emt 0:00:03]} 25. Bd3 {[%emt 0:03:59]} Ne4 {[%emt 0:00:12]} 26. Bxe4 {[%emt 0:14:39]} dxe4 {[%emt 0:00:02]} 27. Qd2 $36 {[%emt 0:00:50][%mdl 2048] Strongly threatening Ng4. White is more active.} f5 {[%emt 0:02:11] [#] Wards off Ng4} (27... Qd6 $11 28. Qe3 f6) 28. g4 {[%emt 0:00:49]} (28. Rxf5 $1 $18 {[%cal Oe1f1] is the precise move to win. Ref1! would be deadly.} Qd6 29. Rf2) 28... Qf6 {[%emt 0:04:42]} (28... Qd6 $16 {was called for.} 29. Re2 (29. gxf5 $2 Qxe5 {[%mdl 64] Pin} 30. Qe3 Qd6 $19) 29... Bc8) 29. Qf4 $18 {[%emt 0:01:11][%cal Oe5g6]} Re7 {[%emt 0:05:11]} 30. gxf5 {[%emt 0:01:25]} Rf8 $2 {[%emt 0:00:55]} (30... Qxf5 31. Qxf5 (31. Qh4 Qe6 $16) 31... gxf5) 31. Qg3 {[%emt 0:00:23]} (31. Ng4 $142 Qh4 32. f6+ Rxf6 33. Qxf6+ Qxf6 34. Nxf6) 31... Rxe5 $2 {[%emt 0:13:40]} (31... e3 32. h4 (32. Qxe3 gxf5 33. Kh2 Kh8 $18) 32... e2) 32. dxe5 {[%emt 0:00:44]} Qb6+ {[%emt 0:00:47]} 33. Kh2 {[%emt 0:00:15]} Rd8 {[%emt 0:00:49]} 34. Qg5 {[%emt 0:00:59] fxg6 would kill now.} Rf8 {[%emt 0:03:59]} 35. fxg6 {[%emt 0:04:03] Threatening mate with Qe7+.} Rf2+ {[%emt 0:04:13]} 36. Kg3 {[%emt 0:00:10] Intending Qe7+ and mate.} e3 {[%emt 0:00:26]} 37. Rxf2 {[%emt 0:01:36]} (37. Qxe3 $2 {perishes.} Rg2+ 38. Kh4 Qd8+ 39. Rf6 hxg6 $19) 37... exf2 {[%emt 0:00:43]} 38. Qf6+ {[%emt 0:00:51]} Kh6 {[%emt 0:00:20]} 39. gxh7+ $4 {[%emt 0:00:45][%mdl 8192]} (39. Qxb6 $2 {loses.} fxe1=Q+ 40. Qf2 Qxe5+ 41. Qf4+ Qxf4+ 42. Kxf4 Kxg6 $19) (39. Qf4+ $18 Kh5 40. Qf5+ Kh6 41. Qxf2 Qxf2+ 42. Kxf2 Kxg6 43. Ke3) 39... Qxf6 $1 {[%emt 0:00:05] What a bad dream for White. An exciting game.   Weighted Error Value: White=0.72/Black=0.60} 0-1

[Event "1st FIDE Olympiad DIS 2023"]
[Site "Belgrade"]
[Date "2023.02.01"]
[Round "3.32"]
[White "Singares, Mario Oscar"]
[Black "Vuljanic, Ana"]
[Result "0-1"]
[ECO "B90"]
[WhiteElo "1425"]
[BlackElo "1613"]
[Annotator "NA RC COMBH"]
[PlyCount "50"]
[EventDate "2023.01.30"]
[EventType "team-tourn"]
[EventCountry "SRB"]
[SourceTitle "playchess.com"]
[Source "ChessBase"]
[SourceQuality "1"]
[WhiteTeam "Panama"]
[BlackTeam "Croatia"]
[WhiteTeamCountry "PAN"]
[BlackTeamCountry "CRO"]
[TimeControl "40/5400+30:1800+30"]

1. e4 {[%emt 0:00:22]} c5 {[%emt 0:00:07]} 2. Nf3 {[%emt 0:00:53]} Nf6 {[%emt 0:00:15]} 3. Nc3 {[%emt 0:01:17]} d6 {[%emt 0:00:15]} 4. d4 {[%emt 0:00:22]} cxd4 {[%emt 0:00:15]} 5. Nxd4 {[%emt 0:00:22]} a6 {[%emt 0:00:27]} 6. Bf4 {[%emt 0:01:50]} e5 {[%emt 0:02:17]} 7. Bg3 {[%emt 0:05:22]} exd4 {[%emt 0:00:29]} 8. Nd5 {[%emt 0:00:31]} Nxd5 {[%emt 0:10:52]} 9. exd5 {[%emt 0:00:42]} Qa5+ {[%emt 0:01:48]} 10. c3 {[%emt 0:01:00]} dxc3 {[%emt 0:05:49]} 11. bxc3 {[%emt 0:01:52]} Qxc3+ {[%emt 0:01:42]} 12. Ke2 {[%emt 0:02:00]} Bd7 {[%emt 0:03:27]} 13. Rc1 {[%emt 0:01:43]} Bb5+ {[%emt 0:00:33]} 14. Qd3 {[%emt 0:01:17]} Qxd3+ {[%emt 0:00:40]} 15. Ke1 {[%emt 0:00:49]} Qxf1+ {[%emt 0:04:12]} 16. Kd2 {[%emt 0:01:04]} Qxc1+ {[%emt 0:01:49]} 17. Kxc1 {[%emt 0:00:40]} Nd7 {[%emt 0:01:18]} 18. f4 {[%emt 0:00:44]} Rc8+ {[%emt 0:00:50]} 19. Kb1 {[%emt 0:00:27]} Nf6 {[%emt 0:01:23]} 20. Bh4 {[%emt 0:01:10]} Kd7 {[%emt 0:01:07]} 21. Rd1 {[%emt 0:00:54]} Be7 {[%emt 0:00:32]} 22. h3 {[%emt 0:00:37]} Nxd5 {[%emt 0:00:32]} 23. Bf2 {[%emt 0:01:32]} Nc3+ {[%emt 0:00:15]} 24. Kc2 {[%emt 0:00:41]} Ba4+ {[%emt 0:00:47]} 25. Kd2 {[%emt 0:01:03]} Nxd1 {[%emt 0:00:50]} 0-1

[Event "1st FIDE Olympiad DIS 2023"]
[Site "Belgrade"]
[Date "2023.02.02"]
[Round "4.1"]
[White "Severino, Sander"]
[Black "Tazbir, Marcin"]
[Result "1/2-1/2"]
[ECO "D27"]
[WhiteElo "2364"]
[BlackElo "2507"]
[Annotator "TA"]
[PlyCount "41"]
[EventDate "2023.01.30"]
[EventType "team-tourn"]
[EventCountry "SRB"]
[SourceTitle "playchess.com"]
[Source "ChessBase"]
[SourceQuality "1"]
[WhiteTeam "Philippines"]
[BlackTeam "Poland"]
[WhiteTeamCountry "PHI"]
[BlackTeamCountry "POL"]
[TimeControl "40/5400+30:1800+30"]

{[%evp 23,28,0,0,7,0,0,22]} 1. Nf3 {[%emt 0:00:30]} d5 {[%emt 0:00:24]} 2. d4 {[%emt 0:00:00]} Nf6 {[%emt 0:00:07]} 3. c4 {[%emt 0:00:04]} dxc4 {[%emt 0:00:10]} 4. e3 {[%emt 0:00:15]} e6 {[%emt 0:00:04]} 5. Bxc4 {[%emt 0:00:10]} c5 {[%emt 0:00:14]} 6. O-O {[%emt 0:00:20]} a6 {[%emt 0:00:09]} 7. dxc5 {[%emt 0:04:38]} Bxc5 {[%emt 0:03:55]} 8. Qxd8+ {[%emt 0:01:30]} Kxd8 {[%emt 0:00:53]} 9. a3 {[%emt 0:00:18]} Ke7 {[%emt 0:03:15]} 10. b4 {[%emt 0:00:32]} Bd6 {[%emt 0:00:30]} 11. Bb2 {[%emt 0:00:05]} b5 {[%emt 0:02:26]} 12. Be2 {[%emt 0:00:16]} Bb7 {[%emt 0:00:08] The position is equal.} 13. Nbd2 {[%emt 0:00:19] D27: Queen's Gambit Accepted: Classical main line: 7 e4!? and 7 a4.} Nbd7 {[%emt 0:00:28]} 14. Nb3 {[%emt 0:01:40] 14.Rac1 is not played anymore.} Rac8 {[%emt 0:10:43] [#] A rather calm draw.   Weighted Error Value: White=0.00 (flawless) /Black=0.00 (flawless)} {Predecessor:} 15. Rac1 $146 e5 16. Nfd2 Rxc1 17. Rxc1 Rc8 18. Rxc8 Bxc8 19. Na5 Nb8 20. Bf3 Bc7 21. Ndb3 {½-½ Akobian,V (2600)-Dominguez Perez,L (2756) American Cup Blitz 2022 (2)} 1/2-1/2